Cogmind - Beta 10.2 @@@ ROGUE MODE // 2020.12.30 @ 20:19:41 Player: Joking_Phantom Result: Destroyed by NK-0LA with NK-0LA's Tesla Doomcannon Performance ------------- Evolutions (1) 500 Regions Visited (6) 1200 Robots Destroyed (102) 510 Value Destroyed (2353) 2353 Prototype IDs (47) 940 Alien Tech Used (0) 0 Bonus (333) 333 TOTAL SCORE: 5836 Bonus ------- High Alert Combat Kills 111 Aligned with FarCom 300 Friendly Fire -78 Cogmind --------- Core Integrity 0/400 Matter 230/300 Energy 280/280 System Corruption 8% Temperature Cool (234) Movement Treading (200) Ox2 Location -8/Mines Parts ------- > --- POWER (1) -------- Heavy Ion Engine > --- PROPULSION (2) --- Improved Treads Improved Treads > --- UTILITY (4) ------ High-capacity Storage Unit High-capacity Storage Unit High-capacity Storage Unit Thief Drone Bay (0/3) > --- WEAPON (2) ------- Autogun Minigun > --- INVENTORY (28) --- Heavy Ion Engine Reinforced Fission Core Improved Treads Improved Treads Advanced Treads Advanced Treads Compact Wheel Experimental Heat Sink High-capacity Storage Unit High-capacity Storage Unit High-capacity Storage Unit Advanced Weapon Cycler System Purifier Heavy EM Pulse Gun Heavy EM Pulse Gun Advanced Beam Cannon Autogun Autogun Minigun Minigun 8R-AWN's Boregun 8R-AWN's Boregun Mini Grenade Launcher Missile Launcher Datajack Field Lobotomy Kit Makeshift Hammer Peak State ------------ > --- POWER ------------ Heavy Ion Engine > --- PROPULSION ------- Improved Treads Advanced Treads > --- UTILITY ---------- Large Storage Unit High-capacity Storage Unit High-capacity Storage Unit Thief Drone Bay > --- WEAPON ----------- 8R-AWN's Boregun 8R-AWN's Boregun > --- INVENTORY -------- Heavy Ion Engine Reinforced Fission Core Improved Treads Advanced Treads Advanced Myomer Leg Advanced Myomer Leg Experimental Heat Sink High-capacity Matter Pod Gravity Neutralizing Apparatus Gravity Neutralizing Apparatus Medium Armor Plating AS-neutralizer No. 17b Heavy EM Pulse Gun Heavy EM Pulse Gun Advanced Beam Cannon Advanced Beam Cannon Advanced Beam Cannon Advanced Beam Cannon Autogun Minigun Minigun Minigun Mini Grenade Launcher Makeshift Hammer [Rating: 47] Favorites ----------- Power Heavy Ion Engine Engine Heavy Ion Engine Propulsion Advanced Treads Treads Advanced Treads Leg Aluminum Leg Wheel Compact Wheel Utility High-capacity Storage Unit Device Thief Drone Bay Storage High-capacity Storage Unit Protection Light Armor Plating Weapon Minigun Energy Gun Heavy EM Pulse Gun Energy Cannon Advanced Beam Cannon Ballistic Gun Minigun Launcher Mini Grenade Launcher Impact Weapon Makeshift Hammer Special Melee Weapon Datajack Build | -11 -10 -10 -9 -9 -9 -8 ------- Run | Scr Mat Min Mat Min Exi Min Slots Evolved 2 | . . . 2 . . . Power . | . . . . . . . Propulsion . | . . . . . . . Utility 2 | . . . 2 . . . Weapon . | . . . . . . . Parts Attached 99 | . 16 13 29 2 32 7 Power 5 | . 1 1 2 . 1 . Engine 5 | . 1 1 2 . 1 . Core . | . . . . . . . Reactor . | . . . . . . . Propulsion 19 | . 2 6 4 . 5 2 Treads 13 | . 2 2 4 . 3 2 Leg . | . . . . . . . Wheel 6 | . . 4 . . 2 . Hover . | . . . . . . . Flight . | . . . . . . . Utility 27 | . 4 2 10 . 10 1 Device 5 | . . 1 . . 3 1 Storage 19 | . 4 1 8 . 6 . Processor . | . . . . . . . Hackware . | . . . . . . . Protection 3 | . . . 2 . 1 . Artifact . | . . . . . . . Weapon 48 | . 9 4 13 2 16 4 Energy Gun 9 | . 1 . 4 . 4 . Energy Cannon 11 | . 4 1 3 1 1 1 Ballistic Gun 13 | . 1 1 3 . 7 1 Ballistic Cannon . | . . . . . . . Launcher 12 | . 3 2 3 1 2 1 Special Weapon . | . . . . . . . Impact Weapon 2 | . . . . . 1 1 Slashing Weapon . | . . . . . . . Piercing Weapon . | . . . . . . . Special Melee Weapon 1 | . . . . . 1 . Unidentified Prototypes 1 | . . 1 . . . . Parts Lost 3 | . . . . . 2 1 Power . | . . . . . . . Propulsion 1 | . . . . . . 1 Utility 1 | . . . . . 1 . Weapon 1 | . . . . . 1 . Highest Loss Streak 1 | . . . . . 1 1 Average Slot Usage (%) 99 | . 99 99 99 100 99 98 Engine 11 | . 14 14 11 11 11 11 Treads 20 | . 20 22 19 22 19 7 Wheel 2 | . . 5 2 . 2 14 Device 3 | . . . . . 8 3 Storage 35 | . 27 27 40 44 34 41 Energy Gun 3 | . 2 . 5 . 4 . Energy Cannon 4 | . 8 3 6 6 2 5 Ballistic Gun 12 | . 14 22 8 11 10 17 Launcher 1 | . 3 1 1 4 . . Special Melee Weapon 1 | . . . . . 3 . Naked Turns . | . . . . . . . Heaviest Build 143 | 10 42 48 143 143 143 143 Greatest Support 46 | 20 40 40 44 44 46 46 Greatest Overweight (x) 8 | . 1 1 3 3 4 8 Average Overweight (x) 1 | . . . 2 3 2 4 Largest Inventory Capacity 36 | 6 16 16 36 36 36 36 Average Capacity 26 | 6 14 15 30 36 28 34 Most Carried 36 | 6 16 16 36 36 36 36 Average Carried 23 | 6 11 15 26 36 24 33 Final Capacity 36 | 6 16 16 36 36 36 28 Final Carried 36 | 6 16 16 36 36 36 27 Class Distribution -------------------- 73% | Hauler-Mutant 26% | Mutant Dominant Class ---------------- Mutant | -10/Materials Mutant | -10/Mines Hauler-Mutant | -9/Materials Hauler-Mutant | -9/Mines Hauler-Mutant | -9/Exiles Hauler-Mutant | -8/Mines Resources | -11 -10 -10 -9 -9 -9 -8 ----------- Run | Scr Mat Min Mat Min Exi Min Matter Collected 2443 | 227 406 546 566 156 409 133 Remotely . | . . . . . . . Salvage Created 3234 | 80 721 195 1526 274 239 199 Parts 223 | 5 58 11 90 35 17 7 Haulers Intercepted 4 | . 1 . 3 . . . Recyclers Shooed 1 | . 1 . . . . . Parts Field Recycled . | . . . . . . . Retrieved Matter . | . . . . . . . Parts Self-Destructed . | . . . . . . . Prevented . | . . . . . . . Kills | -11 -10 -10 -9 -9 -9 -8 ------- Run | Scr Mat Min Mat Min Exi Min Combat Hostiles Destroyed 90 | . 21 12 32 14 8 3 Melee 1 | . . . . . 1 . Guns 31 | . 3 8 14 3 2 1 Cannons 22 | . 10 1 8 1 2 . AOE 36 | . 8 3 10 10 3 2 Classes Destroyed 12 | 2 6 1 1 . 1 1 Worker 1 | . 1 . . . . . Builder 5 | . 2 . 2 1 . . Tunneler 2 | 1 . . . 1 . . Hauler 4 | . 1 . 3 . . . Recycler 4 | 1 . . 1 1 . 1 Turret 1 | . . . . . 1 . Watcher 6 | . 2 . 4 . . . Swarmer 31 | . 6 6 7 12 . . Grunt 38 | . 15 2 17 2 . 2 Duelist 1 | . . . . . . 1 Sentry 8 | . . . 8 . . . Assembled 11 | . . 4 . . 7 . Best Kill Streak 8 | 2 7 3 8 5 5 4 Combat Bots Only 6 | . 3 3 6 5 5 3 Max Kills in Single Turn 4 | 1 4 3 2 3 1 3 Gunslinging 1 | . . 1 . . . . Exploded 3 | . 3 3 2 3 1 2 Melee 1 | . . . . . 1 . Uniques/NPCs Destroyed 4 | . . . . . 4 . 8R-AWN (-9/Exiles) EX-BIN (-9/Exiles) EX-HEX (-9/Exiles) EX-DEC (-9/Exiles) Combat | -11 -10 -10 -9 -9 -9 -8 -------- Run | Scr Mat Min Mat Min Exi Min Damage Taken 3408 | . 429 260 781 231 972 735 Core 517 | . 72 38 113 . 108 186 Absorbed by Shields . | . . . . . . . Core Remaining (%) 78 | 100 . 56 . . . . Volleys Fired 279 | 10 58 28 80 23 72 8 Largest 2 | 2 2 2 2 2 2 2 Hottest 93 | 60 80 83 93 93 93 93 Shots Fired 496 | 20 113 54 152 39 103 15 Gun 344 | 20 62 46 97 17 90 12 Cannon 121 | . 45 6 47 16 5 2 Launcher 31 | . 6 2 8 6 8 1 Special . | . . . . . . . Kinetic 208 | 10 55 46 51 17 17 12 Thermal 134 | 10 48 6 47 16 5 2 Explosive 31 | . 6 2 8 6 8 1 Electromagnetic 123 | . 4 . 46 . 73 . Robot Hit Streak 16 | 3 12 7 16 6 12 3 Robot Miss Streak 6 | 3 4 3 6 3 4 3 Penetration Max . | . . . . . . . Secondary Targets 1 | . . 1 . . . . Max Gunslinging Chain 1 | . . 1 . . . . Shots Hit Robots 338 | 13 68 31 103 24 92 7 Core Hits 175 | 3 37 17 55 18 39 6 Critical Hits 13 | . . . 9 2 2 . Critical Kills 8 | . . . 5 1 2 . Critical Parts Destroyed 5 | . . . 4 1 . . Melee Attacks 23 | . . . . . 23 . Impact 9 | . . . . . 9 . Slashing . | . . . . . . . Piercing . | . . . . . . . Sneak Attacks 12 | . . . . . 12 . Combat Hostiles . | . . . . . . . Follow-up Attacks . | . . . . . . . Damage Inflicted 7500 | 153 1478 578 2851 1216 938 286 Guns 2601 | 153 441 336 1193 166 231 81 Cannons 1732 | . 535 88 793 214 82 20 Explosions 2950 | . 502 154 865 836 408 185 Melee 217 | . . . . . 217 . Ramming . | . . . . . . . Kinetic 1785 | 64 403 336 562 166 173 81 Thermal 2057 | 89 545 88 973 214 128 20 Explosive 2724 | . 502 154 685 836 362 185 Electromagnetic 717 | . 28 . 631 . 58 . Impact 217 | . . . . . 217 . Slashing . | . . . . . . . Piercing . | . . . . . . . Highest Corruption 8 | . . . . . . 8 Average Corruption 4 | . . . . . . 4 Corruption Purged . | . . . . . . . Effects 2 | . . . . . . 2 Heat Flow Errors 1 | . . . . . . 1 Targeting Errors 1 | . . . . . . 1 Overload Shots . | . . . . . . . Overflow Damage 94 | . . . 20 74 . . Projectiles 3 | . . . . 3 . . Explosions 91 | . . . 20 71 . . Melee . | . . . . . . . Knockbacks . | . . . . . . . Impact . | . . . . . . . Kinetic . | . . . . . . . Secondary . | . . . . . . . Self-Inflicted Damage 185 | . 9 29 35 64 48 . Shots 6 | . 1 1 1 2 1 . Rammed . | . . . . . . . Targets Rammed . | . . . . . . . Kicked . | . . . . . . . Crushed . | . . . . . . . Highest Temperature 234 | . 222 166 218 100 216 234 Average Temperature 66 | . 58 30 63 33 108 45 Received Heat Transfer 624 | . 201 147 234 30 . 12 Effects 1 | . 1 . . . . . Energy Bleed 1 | . 1 . . . . . Siege Activations . | . . . . . . . Robots Corrupted . | . . . . . . . Combat Hostiles . | . . . . . . . Parts Fried 6 | . . . 5 . 1 . Impact Corruptions . | . . . . . . . Robots Melted . | . . . . . . . Combat Hostiles . | . . . . . . . Parts Melted 3 | . . 1 2 . . . Heat Transferred 3607 | 200 1135 185 1532 370 148 37 Parts Sabotaged . | . . . . . . . Parts Stolen . | . . . . . . . Parts Stripped . | . . . . . . . Power Chain Reactions 4 | . . . 3 . 1 . Missiles Intercepted . | . . . . . . . Alert | -11 -10 -10 -9 -9 -9 -8 ------- Run | Scr Mat Min Mat Min Exi Min Peak Influence 595 | 10 308 230 595 436 . 88 Initial 191 | . 6 90 19 191 . . Average 228 | 1 131 82 346 327 . 47 Maximum Alert Level 2 | . 1 1 2 2 . . Low Security (%) 45 | 100 81 79 22 1 . 100 Level 1 33 | . 18 20 31 71 . . Level 2 20 | . . . 46 27 . . Level 3 . | . . . . . . . Level 4 . | . . . . . . . Level 5 . | . . . . . . . High Security . | . . . . . . . Max Security . | . . . . . . . Squads Dispatched 10 | . 6 . 4 . . . Investigation 7 | . 4 . 3 . . . Extermination . | . . . . . . . Reinforcement 3 | . 2 . 1 . . . Assault . | . . . . . . . Garrison . | . . . . . . . Intercept . | . . . . . . . Construction Impeded . | . . . . . . . Haulers Reinforced . | . . . . . . . Stealth | -11 -10 -10 -9 -9 -9 -8 --------- Run | Scr Mat Min Mat Min Exi Min Distress Signals 5 | . 1 . 4 . . . Communications Jammed . | . . . . . . . Distress Signals . | . . . . . . . Times Spotted 160 | . 30 9 44 21 52 4 Peak Tracking Total 12 | . 4 3 6 6 12 4 Tactical Retreats 22 | . . . 2 6 14 . Traps | -11 -10 -10 -9 -9 -9 -8 ------- Run | Scr Mat Min Mat Min Exi Min Traps Triggered 1 | . 1 . . . . . Indirectly . | . . . . . . . Trap Hack Attempts . | . . . . . . . Triggered . | . . . . . . . Disarmed . | . . . . . . . Reprogrammed . | . . . . . . . Reused . | . . . . . . . Traps Extracted . | . . . . . . . Installed . | . . . . . . . Triggered . | . . . . . . . Machines | -11 -10 -10 -9 -9 -9 -8 ---------- Run | Scr Mat Min Mat Min Exi Min Machines Disabled 14 | . 1 2 4 . 7 . Max in Single Turn 2 | . 1 1 2 . 1 . Machines Sabotaged . | . . . . . . . Garrisons Compromised . | . . . . . . . Overloaded Fab Kills . | . . . . . . . Fab Network Shutdowns . | . . . . . . . Hacking | -11 -10 -10 -9 -9 -9 -8 --------- Run | Scr Mat Min Mat Min Exi Min Machines Accessed 23 | . 8 1 11 1 2 . Terminals 15 | . 6 . 8 1 . . Fabricators . | . . . . . . . Repair Stations 2 | . . . 2 . . . Recycling Units 3 | . 2 . 1 . . . Scanalyzers . | . . . . . . . Garrison Access . | . . . . . . . Total Hacks 77 | . 31 1 41 2 2 . Successful 47 | . 17 1 26 1 2 . Failed 28 | . 13 . 14 1 . . Catastrophic 1 | . 1 . . . . . Database Lockouts 2 | . 1 . 1 . . . Manual 36 | . 19 . 14 2 1 . Terminals 58 | . 27 . 29 2 . . Fabricators . | . . . . . . . Repair Stations 9 | . . . 9 . . . Recycling Units 7 | . 4 . 3 . . . Scanalyzers . | . . . . . . . Garrison Access . | . . . . . . . Terminal Hacks 25 | . 9 1 13 . 2 . Record 1 | . . . . . 1 . Part Schematic 1 | . 1 . . . . . Robot Analysis 6 | . 2 . 4 . . . Prototype ID Bank 7 | . 3 . 4 . . . Open Door 1 | . . 1 . . . . Level Access Points 1 | . . . 1 . . . Branch Access Points 3 | . 1 . 2 . . . Unreport Threat 2 | . 1 . 1 . . . Locate Traps 1 | . 1 . . . . . Zone Layout 1 | . . . 1 . . . EX-Prototype ID Bank 1 | . . . . . 1 . Fabricator Hacks . | . . . . . . . Repair Station Hacks 7 | . . . 7 . . . Scan Component 4 | . . . 4 . . . Repair 3 | . . . 3 . . . Recycling Unit Hacks 2 | . 2 . . . . . Report Inventory 2 | . 2 . . . . . Scanalyzer . | . . . . . . . Garrison Access Hacks . | . . . . . . . Unauthorized Hacks 13 | . 6 . 6 1 . . Terminals 9 | . 4 . 4 1 . . Track 4 | . 1 . 2 1 . . Botnet 4 | . 2 . 2 . . . Operators 1 | . 1 . . . . . Fabricators . | . . . . . . . Repair Stations . | . . . . . . . Recycling Units 4 | . 2 . 2 . . . Recyclers 1 | . . . 1 . . . Mask 1 | . . . 1 . . . Tunnel 2 | . 2 . . . . . Scanalyzers . | . . . . . . . Garrison Access . | . . . . . . . Data Cores Recovered . | . . . . . . . Used . | . . . . . . . Hacking Detections 17 | . 5 . 11 1 . . Full Trace Events 8 | . 4 . 4 . . . Feedback Events . | . . . . . . . Feedback Blocked . | . . . . . . . Robot Schematics Acquired . | . . . . . . . Robots Built . | . . . . . . . Matter . | . . . . . . . Time . | . . . . . . . Total Robot Build Rating . | . . . . . . . Part Schematics Acquired 1 | . 1 . . . . . Parts Built . | . . . . . . . Matter . | . . . . . . . Time . | . . . . . . . Total Part Build Rating . | . . . . . . . Parts Repaired 3 | . . . 3 . . . Time 84 | . . . 84 . . . Parts Recycled . | . . . . . . . Recycled Matter . | . . . . . . . Retrieved Matter . | . . . . . . . Retrieved Components . | . . . . . . . Parts Scanalyzed . | . . . . . . . Part Schematics Acquired . | . . . . . . . Parts Damaged . | . . . . . . . Bothacking | -11 -10 -10 -9 -9 -9 -8 ------------ Run | Scr Mat Min Mat Min Exi Min Used RIF Installer . | . . . . . . . Robots Hacked 11 | . . . . . 11 . Non-combat 3 | . . . . . 3 . Combat 8 | . . . . . 8 . Robot Hacks Applied 11 | . . . . . 11 . parse_system 11 | . . . . . 11 . Relay Couplers Released . | . . . . . . . Robots Rewired . | . . . . . . . Allies Hacked . | . . . . . . . Hacks Repelled . | . . . . . . . Allies | -11 -10 -10 -9 -9 -9 -8 -------- Run | Scr Mat Min Mat Min Exi Min Total Allies . | . . . . . . . Largest Group . | . . . . . . . Highest-Rated Group . | . . . . . . . Highest-Rated Ally . | . . . . . . . Total Orders 2 | . . . . . 2 . RETURN 2 | . . . . . 2 . Ally Attacks 78 | . . . . . 71 7 Total Damage 514 | . . . . . 467 47 Kills 3 | . . . . . 3 . Allies Corrupted . | . . . . . . . Allies Melted . | . . . . . . . Intel | -11 -10 -10 -9 -9 -9 -8 ------- Run | Scr Mat Min Mat Min Exi Min Robot Analysis Total 6 | . 2 . 4 . . . Derelict Logs Recovered 4 | . . 3 . 1 . . Drone Launches 21 | . . . . . 18 3 Drone Recoveries 18 | . . . . . 18 . Exploration | -11 -10 -10 -9 -9 -9 -8 ------------- Run | Scr Mat Min Mat Min Exi Min Turns Passed 8981 | 57 1116 1189 1744 1064 3703 108 Spaces Moved 4237 | 23 540 673 707 487 1760 47 Core . | . . . . . . . Treads 3470 | . 376 488 592 487 1523 4 Legs 187 | 23 164 . . . . . Wheels 580 | . . 185 115 . 237 43 Hover . | . . . . . . . Flight . | . . . . . . . Fastest Speed 110 | 120 120 110 110 205 140 140 Average Speed 180 | 120 162 160 179 205 188 149 Slowest Speed 220 | 120 180 180 205 205 220 200 Overloaded Moves . | . . . . . . . Propulsion Burnouts . | . . . . . . . Robots Hopped . | . . . . . . . Cave-ins Triggered . | . . . . . . . Time Travels 1 | . . . . . 1 . Exploration Rate (%) 67 | 4 93 97 72 98 91 14 Regions Visited 6 Branch Regions 4 Pre-discovered Areas 6 | . 2 3 . . 1 . Known Exits Taken 2 | . 1 . 1 . . . Unknown Exits Taken 4 | 1 . 1 . 1 1 . Scrap Searched 3 | . . 1 . 1 . 1 Spaces Dug . | . . . . . . . Terrain Destroyed 207 | . 44 26 66 47 11 13 Melee . | . . . . . . . Projectile 1 | . . . 1 . . . AOE 206 | . 44 26 65 47 11 13 Terrain Rammed . | . . . . . . . Walls Destroyed . | . . . . . . . Machines Disabled . | . . . . . . . Actions | -11 -10 -10 -9 -9 -9 -8 --------- Run | Scr Mat Min Mat Min Exi Min Total 5109 | 32 664 731 1044 519 2045 74 Wait 234 | . 13 . 153 4 61 3 Move 4231 | 22 539 672 706 486 1759 47 Hop . | . . . . . . . Pick Up 117 | . 21 7 45 2 41 1 Fast Attach 14 | . 3 3 5 . 3 . Attach 8 | . . 1 1 . 5 1 Detach 1 | . . 1 . . . . Swap 77 | . 13 9 23 2 24 6 Drop 125 | . 17 10 31 2 57 8 Fire 279 | 10 58 28 80 23 72 8 Melee 23 | . . . . . 23 . Ram . | . . . . . . . Kick . | . . . . . . . Crush . | . . . . . . . Escape Stasis . | . . . . . . . Rewire . | . . . . . . . Trap . | . . . . . . . Miscellaneous . | . . . . . . . Route ------- -11/Scrapyard -10/Materials (discovered 4 exits: *Mat x3 / *Min) -10/Mines (discovered 2 exits: *Mat x2) -9/Materials (discovered 4 exits: *Mat x3 / *Min) -9/Mines (discovered 4 exits: *Mat x2 / *Exi / [*Zio]) -9/Exiles (discovered 2 exits: [*Min x2]) -8/Mines (discovered 1 exit: *Mat) History --------- Turn | Location | Event 19 | -11/Scrapyard | Discovered new exit (range 3) 58 | -11/Scrapyard | Entered Materials 107 | -10/Materials | Identified exit to Mines 305 | -10/Materials | Build established: Mutant 399 | -10/Materials | Discovered new exit (range 11) 735 | -10/Materials | Discovered new exit (range 16) 898 | -10/Materials | Central database locked down 928 | -10/Materials | Discovered new exit (range 10) 1174 | -10/Materials | Entered Mines 1195 | -10/Mines | Met a Derelict bent on vengeance 1288 | -10/Mines | Learned 4 Materials zone layouts 1326 | -10/Mines | Learned location of Zion (-7) 1368 | -10/Mines | Discovered new exit (range 9) 1378 | -10/Mines | Found the Drone Emporium 1397 | -10/Mines | Found Prototype Device 1397 | -10/Mines | Identified Thief Drone Bay 1606 | -10/Mines | Assembled infested the area 1611 | -10/Mines | Assisted by a Guerilla fighting off Assembled 1816 | -10/Mines | Learned location of Storage (-7) 2187 | -10/Mines | Discovered new exit (range 5) 2363 | -10/Mines | Entered Materials 2363 | -9/Materials | Evolved 2 slots: Utility x2 2364 | -9/Materials | Identified exit to Materials 2415 | -9/Materials | Repaired Lgt. Treads 2442 | -9/Materials | Repaired Lgt. Treads 2694 | -9/Materials | Build established: Hauler-Mutant 2772 | -9/Materials | Discovered new exit (range 12) 3261 | -9/Materials | Identified exit to Mines 3622 | -9/Materials | Repaired Hvy. EM Pulse Gun 3720 | -9/Materials | Central database locked down 4107 | -9/Materials | Entered Mines 4145 | -9/Mines | A Derelict revealed a hidden shortcut to a safe place 4168 | -9/Mines | A weapon hastily lodged in a ceiling crevice suddenly fell to the ground 4336 | -9/Mines | Discovered exit to Materials (range 16) 4510 | -9/Mines | Discovered exit to Materials (range 12) 4826 | -9/Mines | Received a Rocket Launcher from a helpful Derelict 4879 | -9/Mines | Learned Materials stockpile data 5130 | -9/Mines | Deemed a non-threat by the Exiles lab entrance 5130 | -9/Mines | Discovered new exit (range 5) 5171 | -9/Mines | Entered Exiles 5221 | -9/Exiles | Met 8R-AWN 5256 | -9/Exiles | Met EX-HEX 5323 | -9/Exiles | Met EX-BIN 5354 | -9/Exiles | Met EX-DEC 5547 | -9/Exiles | Discovered new exit (range 14) 5771 | -9/Exiles | Aligned with FarCom system 5773 | -9/Exiles | Given EX-Vault access code 5824 | -9/Exiles | Opened EX-Vault 5840 | -9/Exiles | Found Chronowheel 5840 | -9/Exiles | Activated Chronowheel 5840 | -9/Exiles | Spacetime reconverged on an earlier point 5842 | -9/Exiles | Found Cloak of Protection 5850 | -9/Exiles | Found Field Lobotomy Kit 5893 | -9/Exiles | Warned to stay clear of 0b10 Research branches 6154 | -9/Exiles | Visited The Gauntlet 7140 | -9/Exiles | Attacked by the Exiles 7184 | -9/Exiles | Core integrity fell below 50% 7229 | -9/Exiles | Found 8R-AWN's Boregun 7230 | -9/Exiles | Found 8R-AWN's Boregun 7674 | -9/Exiles | Destroyed 8R-AWN 7680 | -9/Exiles | Found 8R-AWN's Armor/EX 8077 | -9/Exiles | Allies destroyed EX-BIN 8080 | -9/Exiles | Found System Purifier 8089 | -9/Exiles | Allies destroyed EX-HEX 8195 | -9/Exiles | Destroyed EX-DEC 8225 | -9/Exiles | Found Deploy-a-Sentry 8687 | -9/Exiles | Discovered new exit (range 14) 8874 | -9/Exiles | Stole two prototypes: Field Lobotomy Kit, Deploy-a-Sentry 8874 | -9/Exiles | Entered Mines 8883 | -8/Mines | Discovered exit to Materials (range 10) 8935 | -8/Mines | NK-0LA came to Exiles' defense 8977 | -8/Mines | Core integrity fell below 20% 8982 | -8/Mines | Destroyed by NK-0LA with NK-0LA's Tesla Doomcannon Last Messages --------------- 08961_ Thief Drone released from Thief Drone Bay. 08961_ Thief Drone sneak attacks. 08962_ Thief Drone released from Thief Drone Bay. 08962_ The unstable cave ceiling collapses. 08962_ Thief Drone destroyed. 08968_ Acquired 30 matter. 08968_ R-06 Scavenger collects Com. Wheel. 08972_ U-05 Engineer lays Concrete. 08972_ NK-0LA Prototype Storage ripped off. 08972_ R-06 Scavenger collects Wheel. 08973_ U-05 Engineer builds a Wall. 08976_ R-06 Scavenger collects Particle Gun. 08978_ U-05 Engineer lays Concrete. 08978_ Chain reaction triggered in Mak. Power Source. 08978_ Thief Drone destroyed. 08978_ System corrupted: Minigun targeting data glitched. 08979_ U-05 Engineer lays Concrete. 08979_ R-06 Scavenger collects Aluminum Leg. 08980_ System corrupted: Heat flow error (+238). 08980_ U-05 Engineer lays Concrete. Map ----- +----------------------------------------------------+ | ?????????????????????????????????????????????????? | | ?????????????????????????????????????????????????? | | ?????????????????????????????????????????????????? | | ?????????????????????????????????????????????????? | | ????????????????????????? ??????????????????????? | | ????????????????????????? ??????????????????????? | | ????????????????????????? ??????????????????????? | | ????????????????????????? ??????????????????????? | | ????????????????????????? #?????????????????????? | | ????????????????????????? ##???????????????????? | | ????????????????????????? ##??????????????????? | | ?????????????????????????# #??????????????????? | | ????????????????????????## #??????????????????? | | ??????????????????????### ???????????????????? | | ?????????????????????## ???????????????????? | | ?????????????????????? ???????????????????? | | ???????????????????????# #???????????????????? | | ????????????????????????# !%=###?????????????????? | | ????????????????????????## u##### #?????????? | | ????????????????????????# %r = #?????????? | | ????????????????????????# ###### #?????????? | | ????????????????????????#[ [ #???????????????????? | | ???????????????????????##] #???????????????????? | | ??????????????????????## ];#???????????????????? | | ??????????????????????# % x#???????????????????? | | ??????????????????????# @= #???????????????????? | | ?????????????????????## %;#???????????????????? | | ????????????????????## &;####????????????????? | | ???????????????????## !]]! ##???????????????? | | ???????????????????# < ]]" #???????????????? | | ???????????????????# " " ##??????????????? | | ???????????????????## " " ###????????????? | | ????????????????????## ##???????????? | | ?????????????????????## #???????????? | | ??????????????????????## #???????????? | | ???????????????????????## #???????????? | | ????????????????????????## ### #???????????? | | ??????????????????######### #??# #???????????? | | ?????????????????## ### #???# ##???????????? | | ?????????????????# ## #????###????????????? | | ?????????????????# #???????????????????? | | ?????????????????# #???????????????????? | | ?????????????????## #########???????????????????? | | ??????????????????###????????????????????????????? | | ?????????????????????????????????????????????????? | | | | | | | | | | | +----------------------------------------------------+ Best States ------------- Heat Dissipation 28 Energy Generation 18 Energy Capacity 280 Matter Stores 300 Matter Capacity 300 Sight Range 16 Terrain Scan Density 10 Armor Coverage 225 Evasion (%) 40 Recoil Reduction 2 Item Schematics ----------------- Hcp. Storage Unit | -10/Materials | Hacked Robot Schematics ------------------ None Fabricated ------------ Nothing Alien Tech Used ----------------- None Achievements -------------- None Challenges ------------ None Game ------ Seed SkeletonThermalPerforator Manual? 0 Play Time 01:16:35 Cumulative 621.4 hours Start 2020.12.29 @ 20:10:44 End 2020.12.30 @ 20:19:41 Sessions 7 Manual Loads 0 Difficulty Rogue Special Mode None Game No. 137 Rogue 89 Adventurer 0 Explorer 48 Win Type - Total 34 Types 3/1/6/17/0/4/1/1/1 Lore% 77 Gallery% 90 Achievement% 67 Wizard Run 0 Options --------- ASCII 0 Keyboard 0 Movement Mouse Keybinds 0 Fullscreen 2 Font 24/Crisp Map View 76x50 Tactical HUD 1 Map Filters NONE Filters NONE Steam 1 RUN: 369188d5-3f17-4ac4-b89f-3dcf1a1a3149